bitfinex/quotes_ETHUSD_20240614
["timestamp","ask_amount","ask_price","bid_price","bid_amount"]
[1718398016674,0.07896793,3418.0,3417.8,2.92583]
[1718398016979,0.07894725,3417.9,3417.8,2.92583]
[1718398017786,2.92544,3418.3,3417.8,2.92583]
[1718398017953,0.07894725,3417.9,3417.8,2.92583]
[1718398018149,2.92544,3418.3,3417.8,2.92583]
[1718398018350,0.07900928,3418.2,3417.8,2.92583]
[1718398018566,2.92544,3418.3,3417.9,2.92575]
[1718398018767,0.07625845,3418.2,3417.9,2.92575]
[1718398018964,2.92544,3418.3,3417.9,2.92575]
[1718398019166,0.07625845,3418.2,3417.9,2.92575]
[1718398019376,2.92544,3418.3,3417.9,2.92575]
[1718398019577,0.07625845,3418.2,3417.9,2.92575]
[1718398019789,2.92544,3418.3,3417.9,2.92575]
[1718398020193,0.07625845,3418.2,3417.9,2.92575]
[1718398020490,0.07625845,3418.2,3418.1,2.9256]
[1718398020690,2.92517,3418.6,3418.1,2.9256]
[1718398020889,0.07626198,3418.2,3418.1,2.9256]
[1718398021491,2.92526,3418.5,3418.1,2.9256]
[1718398021690,0.07626198,3418.2,3418.1,2.9256]
[1718398021892,2.92526,3418.5,3418.1,2.9256]
[1718398022065,0.07364698,3418.2,3418.1,2.9256]
[1718398022697,3.0,3419.0,3418.1,2.92558]
[1718398022852,0.07364698,3418.2,3418.1,2.92558]
[1718398023052,2.9251,3418.7,3418.1,2.92558]
[1718398023281,0.07363995,3418.2,3418.1,2.92558]
[1718398023485,2.92526,3418.5,3418.1,2.92558]
[1718398023687,0.07363995,3418.2,3418.1,2.92558]
[1718398023894,3.510296,3418.5,3418.1,2.92558]
[1718398024094,0.07363995,3418.2,3418.1,2.92558]
[1718398024387,3.510296,3418.5,3418.1,2.92558]
[1718398024558,0.07363995,3418.2,3417.9,2.92577]
[1718398024759,0.07363995,3418.2,3417.7,2.92593]
[1718398024760,2.92552,3418.2,3417.7,2.92593]
[1718398024967,0.07361927,3418.1,3417.7,2.92593]
[1718398025576,2.99927927,3418.1,3417.7,2.92593]
[1718398025770,2.92579,3417.9,3417.5,2.9261]
[1718398026168,0.07355723,3417.8,3417.5,2.9261]
[1718398027793,0.07355723,3417.8,3417.3,2.92625]
[1718398028179,2.92594,3417.7,3417.4,2.92618]
[1718398028372,0.07351495,3417.6,3417.4,2.92618]
[1718398028821,2.9258,3417.9,3417.5,2.92611]
[1718398031693,3.72456969,3417.9,3417.5,2.92611]
[1718398032365,2.92589,3417.8,3417.3,2.92627]
[1718398032663,2.92595,3417.7,3417.3,2.92627]
[1718398033305,2.92595,3417.7,3416.9,9.75087]
[1718398033306,2.92586,3417.8,3416.9,9.75091]
[1718398033506,2.92611,3417.5,3416.9,2.92661]
[1718398033723,2.92628,3417.4,3416.8,2.9267]
[1718398034017,2.92629,3417.3,3416.9,2.92655]
[1718398034301,2.92648,3417.1,3416.7,2.92677]
[1718398034462,2.92654,3417.0,3416.6,2.92685]
[1718398034658,2.99973536,3417.0,3416.6,2.92685]
[1718398034899,0.07319536,3417.0,3416.6,2.92685]
[1718398035076,2.99981536,3417.0,3416.6,2.92685]
[1718398035480,2.99981536,3417.0,3416.4,2.92704]
[1718398035481,2.92665,3416.9,3416.5,2.92691]
[1718398035664,2.99975536,3417.0,3416.6,2.92687]
[1718398035866,0.07307629,3416.8,3416.7,2.9268]
[1718398036131,2.92622,3417.4,3416.9,2.92656]
[1718398036405,0.65819583,3417.3,3416.9,2.92656]
[1718398036566,3.58447583,3417.3,3416.9,2.92656]
[1718398037693,3.58447583,3417.3,3417.1,2.9264]
[1718398037694,0.07296783,3417.3,3417.1,2.9264]
[1718398038094,2.92604,3417.6,3417.1,2.9264]
[1718398038269,0.07290106,3417.2,3417.1,2.9264]
[1718398038471,2.92604,3417.6,3417.1,2.9264]
[1718398038981,0.07294192,3417.5,3417.1,2.9264]
[1718398042295,2.99905192,3417.5,3417.1,2.9264]
[1718398043120,0.07294192,3417.5,3417.1,2.9264]
[1718398044921,2.99907192,3417.5,3417.0,2.92651]
[1718398045233,0.99527179,3417.4,3417.0,2.92651]
[1718398045382,1.06759032,3417.4,3417.0,2.92651]
[1718398045713,1.06759032,3417.4,3417.1,2.92644]
[1718398047620,0.07231853,3417.4,3417.1,2.92644]
[1718398050102,0.07231853,3417.4,3417.2,2.92631]
[1718398050308,0.45790095,3419.2,3417.2,2.92633]
[1718398050309,7.3501,3417.9,3417.2,2.92633]
[1718398050526,10.23553,3418.2,3417.5,2.92609]
[1718398050527,2.92571,3418.0,3417.5,2.92609]
[1718398050693,0.07247658,3417.8,3417.5,2.92609]
[1718398051027,0.0724347,3417.7,3417.5,2.92609]
[1718398051186,2.92571,3418.0,3417.5,2.92609]
[1718398051507,0.07247605,3417.9,3417.5,2.92609]
[1718398052736,0.07247605,3417.9,3417.6,2.926]
[1718398053539,0.07247605,3417.9,3417.7,2.92593]
[1718398054027,0.07276264,3417.8,3417.7,2.92593]
[1718398054227,2.92562,3418.1,3417.7,2.92593]
[1718398054429,0.07276264,3417.8,3417.7,2.92593]
[1718398054634,2.92562,3418.1,3417.7,2.92593]
[1718398054813,0.07276264,3417.8,3417.7,2.92593]
[1718398055141,2.92562,3418.1,3417.7,2.92593]
[1718398055350,0.07278031,3417.8,3417.7,2.92593]
[1718398055812,2.92562,3418.1,3417.7,2.92593]
[1718398056013,0.07278031,3417.8,3417.7,2.92593]
[1718398056208,2.92562,3418.1,3417.7,2.92593]
[1718398056413,0.07278031,3417.8,3417.7,2.92593]
[1718398056710,5.92544,3418.3,3417.7,10.15013]
[1718398056951,0.07278031,3417.8,3417.7,13.07607]
[1718398057153,2.92544,3418.3,3417.8,2.92578]
[1718398057352,0.94942496,3418.2,3417.9,2.92577]
[1718398057856,0.94942496,3418.2,3418.0,2.92563]
[1718398058177,3.6435396,3418.4,3418.0,2.92563]
[1718398058336,6.5688896,3418.4,3418.0,2.92563]
[1718398060651,2.92543,3418.3,3417.9,2.92576]
[1718398064583,0.07271053,3418.2,3417.9,2.92576]
[1718398064883,2.92543,3418.3,3417.9,2.92576]
[1718398065071,0.07055553,3418.1,3417.9,2.92576]
[1718398065267,5.46184296,3418.3,3417.9,2.92576]
[1718398065567,0.07053486,3418.0,3417.9,2.92576]
[1718398065768,5.46184296,3418.3,3417.9,2.92576]
[1718398066280,0.07057621,3418.2,3417.9,2.92576]
[1718398066496,5.46184296,3418.3,3417.9,2.92576]
[1718398066702,0.07055553,3418.1,3417.9,2.92576]
[1718398066864,5.46184296,3418.3,3417.9,2.92576]
[1718398067066,0.07053486,3418.0,3417.9,2.92576]
[1718398067486,5.46184296,3418.3,3417.9,2.92576]
[1718398067765,0.07053486,3418.0,3417.9,2.92576]
[1718398067969,5.46184296,3418.3,3417.9,2.92576]
[1718398068169,0.07053486,3418.0,3417.9,2.92576]
[1718398068361,5.46184296,3418.3,3417.9,2.92576]
[1718398068564,0.07053486,3418.0,3417.9,2.92576]
[1718398068763,5.46184296,3418.3,3417.9,2.92576]
[1718398068964,0.07053486,3418.0,3417.9,2.92576]
[1718398069207,5.46184296,3418.3,3417.9,2.92576]
[1718398069368,0.07053486,3418.0,3417.9,2.92576]
[1718398069568,5.46184296,3418.3,3417.9,2.92576]
[1718398070092,0.07057974,3418.2,3417.9,2.92576]
[1718398070265,2.92551,3418.2,3417.9,2.92576]
[1718398070462,0.07055907,3418.1,3417.8,2.92583]
[1718398080455,2.92595,3417.7,3417.4,0.874]
[1718398080642,2.92589,3417.8,3417.2,2.92636]
[1718398080843,0.06510461,3417.6,3417.3,2.92622]
[1718398081043,2.92595,3417.7,3417.3,2.92622]
[1718398081243,0.06508393,3417.5,3417.3,2.92622]
[1718398081424,2.92595,3417.7,3417.4,2.9262]
[1718398081626,0.06510461,3417.6,3417.4,2.9262]
[1718398082058,0.06510461,3417.6,3417.3,2.92625]
[1718398083554,3.58282907,3417.6,3417.2,2.92634]
[1718398083766,0.65678907,3417.6,3416.9,3.80061]
[1718398084084,0.65678907,3417.6,3416.7,2.92679]
[1718398084085,2.92638,3417.2,3416.7,2.92679]
[1718398084363,2.92646,3417.1,3416.7,2.92679]
[1718398084526,2.92646,3417.1,3416.6,2.92687]
[1718398084527,2.92663,3416.9,3416.6,2.92687]
[1718398084923,0.06474805,3416.8,3416.6,2.92687]
[1718398085162,2.92656,3417.0,3416.6,2.92687]
[1718398085380,0.06459288,3416.7,3416.6,2.92687]
[1718398085578,2.92621,3417.4,3416.7,2.92679]
[1718398085878,2.92621,3417.4,3416.9,2.92655]
[1718398086264,2.9263,3417.3,3416.9,2.92655]
[1718398087096,2.92637,3417.2,3416.8,2.92668]
[1718398087287,3.511621,3417.2,3416.8,2.92668]
[1718398087644,2.92655,3417.0,3416.6,2.92686]
[1718398089883,0.585251,3417.2,3416.7,2.92677]
[1718398090182,2.92643,3417.2,3416.8,2.9267]
[1718398091181,2.92647,3417.1,3416.8,2.9267]
[1718398094190,2.92639,3417.2,3416.8,2.9267]
[1718398094491,0.06428631,3417.1,3416.8,2.9267]
[1718398095677,2.99073631,3417.1,3416.8,2.9267]
[1718398096153,2.99073631,3417.1,3416.6,2.92687]
[1718398096154,2.99073631,3417.1,3416.7,2.92677]
[1718398098329,2.92655,3417.0,3416.7,2.92677]
[1718398098632,2.92704,3416.5,3416.1,2.92725]
[1718398098786,2.9269,3416.6,3416.2,2.92722]
[1718398098989,0.06404144,3416.4,3416.3,2.92714]
[1718398099214,2.9268,3416.7,3416.3,2.92714]
[1718398099425,0.06404144,3416.4,3416.3,2.92714]
[1718398099628,2.9268,3416.7,3416.3,2.92714]
[1718398099814,0.06404144,3416.4,3416.3,2.92714]
[1718398100313,2.9268,3416.7,3416.3,2.92714]
[1718398100536,0.06404144,3416.4,3416.3,2.92714]
[1718398100722,2.9268,3416.7,3416.3,2.92714]
[1718398100923,0.06404144,3416.4,3416.3,2.92714]
[1718398101120,2.9268,3416.7,3416.3,2.92714]
[1718398101744,0.063966,3416.6,3416.3,2.92714]
[1718398102135,0.063966,3416.6,3416.2,2.92722]
[1718398102136,0.063966,3416.6,3416.4,2.92704]
[1718398102443,2.92673,3416.8,3416.4,2.92704]
[1718398102642,0.06394174,3416.5,3416.4,2.92704]
[1718398102829,2.92673,3416.8,3416.4,2.92704]
[1718398103139,4.10337268,3416.8,3416.4,2.92704]
[1718398103343,0.93798313,3416.7,3416.4,2.92704]
[1718398103507,3.86478313,3416.7,3416.4,2.92704]
[1718398104556,3.86478313,3416.7,3416.3,2.92712]
[1718398107259,2.92704,3416.5,3416.1,2.9273]
[1718398107411,3.80104,3416.5,3416.1,2.9273]
[1718398107615,0.06326258,3416.4,3416.1,2.9273]
[1718398110252,2.99033258,3416.4,3416.0,2.92735]
[1718398110441,2.99033258,3416.4,3416.1,2.9273]
[1718398111324,0.06326258,3416.4,3416.1,2.9273]
[1718398113925,0.874,3416.2,3415.6,2.92769]
[1718398114126,3.30547,3416.4,3415.6,2.92769]
[1718398114127,0.874,3416.0,3415.6,2.92769]
[1718398114631,0.06304928,3415.9,3415.6,2.92769]
[1718398116872,0.06304928,3415.9,3415.4,2.9279]
[1718398116873,2.92758,3415.8,3415.4,2.9279]
[1718398117042,2.99066239,3415.8,3415.5,2.92782]
[1718398117931,0.06308239,3415.8,3415.5,2.92782]
[1718398127244,0.06308239,3415.8,3415.7,2.92765]
[1718398127447,3.80124,3416.2,3415.8,2.92756]
[1718398127786,0.06241639,3416.1,3415.8,2.92756]
[1718398128285,0.06241639,3416.1,3415.9,2.92747]
[1718398128472,3.80116,3416.3,3415.9,2.92747]
[1718398128788,1.44817464,3416.3,3416.0,2.92739]
[1718398128947,2.32217464,3416.3,3416.0,2.92739]
[1718398130570,7.2269,3416.7,3416.2,2.92722]
[1718398130755,0.874,3416.5,3416.2,2.92722]
[1718398134787,0.874,3416.5,3416.1,2.92728]
[1718398138500,3.80097,3416.5,3416.1,2.92728]
[1718398138708,3.0,3416.4,3416.1,2.92728]
[1718398139503,0.06251881,3416.3,3416.1,2.92728]
[1718398140597,0.06251881,3416.3,3416.0,2.92737]
[1718398141300,0.06251881,3416.3,3415.1,10.23816]
[1718398141301,2.9274,3416.0,3415.5,2.92781]
[1718398141509,3.80151,3415.9,3415.5,2.92782]
[1718398141800,3.86394956,3415.9,3415.5,2.92782]
[1718398142708,2.92757,3415.8,3415.5,2.92782]
[1718398143000,2.92757,3415.8,3415.4,2.92788]
[1718398143001,2.98998886,3415.8,3415.4,2.92788]
[1718398144270,2.92765,3415.7,3415.4,2.92788]
[1718398144468,0.06237745,3415.6,3415.4,2.92788]
[1718398145707,2.92759,3415.8,3415.4,2.92788]
[1718398146279,0.06226709,3415.7,3415.4,2.92788]
[1718398146481,2.92759,3415.8,3415.4,2.92788]
[1718398146717,0.06224639,3415.6,3415.4,2.92788]
[1718398146894,2.92767,3415.7,3415.4,2.92788]
[1718398147096,0.06222568,3415.5,3415.4,2.92788]
[1718398147412,2.92767,3415.7,3415.3,2.92797]
[1718398147710,2.92767,3415.7,3415.4,2.92791]
[1718398147910,0.06224639,3415.6,3415.4,2.92791]
[1718398148590,2.92759,3415.8,3415.4,2.92791]
[1718398149223,0.06019889,3415.7,3415.5,2.92777]
[1718398149705,2.92749,3415.9,3415.6,2.92773]
[1718398152089,2.92749,3415.9,3415.5,2.9278]
[1718398152270,2.9278,3415.6,3415.2,2.92805]
[1718398153990,2.9278,3415.6,3415.1,2.92816]
[1718398154189,2.92786,3415.5,3415.1,2.92816]
[1718398154628,0.06016514,3415.4,3415.1,2.92816]
[1718398156697,0.06016514,3415.4,3415.2,2.92808]
[1718398159095,0.06016514,3415.4,3415.1,2.92814]
[1718398162751,0.06016514,3415.4,3414.9,2.92833]
[1718398162752,2.92806,3415.3,3414.9,2.92833]
[1718398162909,2.98656336,3415.3,3414.9,2.92833]
[1718398163312,2.92831,3415.0,3414.6,2.92857]
[1718398163848,0.05823279,3414.9,3414.6,2.92857]
[1718398164010,0.05823279,3414.9,3414.7,2.9285]
[1718398164611,2.92819,3415.1,3414.7,2.9285]
[1718398164843,0.0579853,3414.8,3414.7,2.9285]
[1718398165020,2.92819,3415.1,3414.7,2.9285]
[1718398165221,0.0579853,3414.8,3414.7,2.9285]
[1718398165533,0.05795695,3414.8,3414.7,2.9285]
[1718398165734,2.92819,3415.1,3414.8,2.92842]
[1718398169216,2.9281,3415.2,3414.8,2.92842]
[1718398169630,0.05802971,3415.1,3414.8,2.92842]
[1718398170110,0.05802971,3415.1,3414.9,2.92833]
[1718398170315,10.94802,3415.4,3414.9,2.92833]
[1718398170528,0.05800194,3415.0,3414.9,2.92833]
[1718398170731,10.94802,3415.4,3414.9,2.92833]
[1718398170939,1.38758,3415.4,3414.5,0.874]
[1718398171123,3.80183,3415.5,3415.1,2.9281]
[1718398171919,2.92783,3415.5,3415.1,2.9281]
[1718398172118,3.80183,3415.5,3415.1,2.9281]
[1718398174235,2.92783,3415.5,3415.1,2.9281]
[1718398174436,3.80183,3415.5,3415.1,2.9281]
[1718398174677,0.874,3415.3,3414.6,9.73997]
[1718398175253,2.92809,3415.2,3414.8,2.92834]
[1718398175644,2.92826,3415.0,3414.7,2.92849]
[1718398176281,2.92841,3414.9,3414.4,2.92872]
[1718398176463,2.92845,3414.8,3414.5,2.92867]
[1718398176792,0.05788764,3414.7,3414.5,2.92867]
[1718398177102,2.92845,3414.8,3414.5,2.92867]
[1718398177225,0.05786692,3414.6,3414.5,2.92867]
[1718398177426,2.92845,3414.8,3414.5,2.92867]
[1718398177967,0.05788764,3414.7,3414.5,2.92867]
[1718398178188,2.92845,3414.8,3414.5,2.92867]
[1718398178328,0.05786692,3414.6,3414.5,2.92867]
[1718398178527,2.92845,3414.8,3414.5,2.92867]
[1718398178730,0.05781022,3414.6,3414.5,2.92867]
[1718398178933,2.92845,3414.8,3414.5,2.92867]
[1718398179134,0.05781022,3414.6,3414.5,2.92867]
[1718398179358,0.874,3415.1,3414.5,2.92867]
[1718398179359,2.92832,3415.0,3414.6,2.92858]
[1718398179765,2.92818,3415.1,3414.7,2.9285]
[1718398180360,9.80935,3415.0,3414.4,2.92875]
[1718398180541,2.9284,3414.9,3414.5,2.92866]
[1718398180954,2.92843,3414.8,3414.5,2.92866]
[1718398184580,0.05709257,3414.7,3414.5,2.92866]
[1718398184739,2.92843,3414.8,3414.5,2.92866]
[1718398184941,0.05707185,3414.6,3414.5,2.92866]
[1718398185142,2.92837,3414.9,3414.6,2.92859]
[1718398188655,10.90332,3415.2,3414.7,2.9285]
[1718398188656,2.92827,3415.0,3414.7,2.9285]
[1718398188856,2.92822,3415.1,3414.7,2.9285]
[1718398189378,7.1012,3415.5,3414.6,7.2813]
[1718398189690,6.80192,3415.4,3415.0,2.9282]
[1718398190756,3.0,3415.4,3415.0,2.9282]
[1718398190976,0.874,3415.5,3415.0,2.9282]
[1718398191162,0.874,3415.5,3415.2,2.92808]
[1718398191359,3.80182,3415.5,3415.1,2.92815]
[1718398191652,4.774768,3415.5,3415.1,2.92815]
[1718398192191,4.774768,3415.5,3415.0,2.92823]
[1718398192192,2.92791,3415.4,3415.0,2.92823]
[1718398193488,2.92791,3415.4,3414.9,2.92833]
[1718398193489,2.92801,3415.3,3414.9,2.92833]
[1718398195174,2.92809,3415.2,3414.9,2.92833]
[1718398198662,2.92809,3415.2,3414.8,2.9284]
[1718398199558,0.05718142,3415.1,3414.8,2.9284]
[1718398200494,0.05718142,3415.1,3414.9,2.92833]
[1718398200667,0.05718142,3415.1,3414.9,2.92827]
[1718398200868,2.92794,3415.4,3415.0,2.92825]
[1718398201259,2.92784,3415.5,3415.1,2.92809]
[1718398202476,2.92784,3415.5,3415.2,2.92808]
[1718398202679,2.92775,3415.6,3415.2,2.92808]
[1718398203260,2.92783,3415.5,3415.2,2.92808]
[1718398203460,2.92767,3415.7,3415.0,3.80223]
[1718398203461,2.92776,3415.6,3415.3,2.92799]
[1718398204663,3.8019,3415.5,3414.9,6.7687]
[1718398205000,2.92814,3415.2,3414.8,2.92841]
[1718398205563,2.85181725,3415.2,3414.8,2.92841]
[1718398205903,2.92824,3415.1,3414.6,9.90068]
[1718398206274,2.92824,3415.1,3414.8,2.92842]
[1718398206474,2.92824,3415.1,3414.6,9.90068]
[1718398206778,2.92824,3415.1,3414.7,2.92848]
[1718398207386,2.92819,3415.1,3414.7,2.92848]
[1718398211604,2.92819,3415.1,3414.8,2.92842]
[1718398214611,0.05718393,3415.0,3414.8,2.92842]
[1718398215007,2.98544393,3415.0,3414.7,2.92848]
[1718398215509,0.05718393,3415.0,3414.7,2.92848]
[1718398215934,0.05718393,3415.0,3414.8,2.92837]
[1718398216240,2.92809,3415.2,3414.8,2.92837]
[1718398216515,0.05713086,3414.9,3414.8,2.92837]
[1718398216678,2.92809,3415.2,3414.8,2.92837]
[1718398216880,0.05713086,3414.9,3414.8,2.92837]
[1718398217075,2.92809,3415.2,3414.8,2.92837]
[1718398217299,0.05713086,3414.9,3414.8,2.92837]
[1718398217505,2.92809,3415.2,3414.8,2.92837]
[1718398217711,0.05713086,3414.9,3414.8,2.92837]
[1718398217911,2.92809,3415.2,3414.8,2.92837]
[1718398218114,0.0571238,3414.9,3414.8,2.92837]
[1718398218322,2.92809,3415.2,3414.8,2.92837]
[1718398218507,0.0571238,3414.9,3414.8,2.92837]
[1718398218680,2.92809,3415.2,3414.9,2.92831]
[1718398219223,2.92788,3415.5,3415.0,2.92825]
[1718398219512,3.80202,3415.3,3414.8,2.92834]
[1718398219878,2.92802,3415.3,3414.9,2.92833]
[1718398221980,2.92783,3415.5,3415.1,2.9281]
[1718398225108,2.92774,3415.6,3414.9,9.96244]
[1718398225307,2.92792,3415.4,3415.0,2.92824]
[1718398227088,2.928,3415.3,3415.0,2.92824]
[1718398229445,0.05719715,3415.2,3415.0,2.92824]
[1718398229638,2.92794,3415.4,3415.0,2.92824]
[1718398229937,0.05717644,3415.1,3415.0,2.92824]
[1718398230248,2.92783,3415.5,3415.1,2.92816]
[1718398230434,2.92776,3415.6,3415.1,2.92816]
[1718398230775,2.92767,3415.7,3415.3,2.92799]
[1718398231827,2.92757,3415.8,3415.3,2.92799]
[1718398232063,3.0,3415.7,3415.3,2.92799]
[1718398232820,2.92757,3415.8,3415.4,2.92789]
[1718398233020,2.9274,3416.0,3415.2,10.02114]
[1718398233236,2.9274,3416.0,3415.5,2.92782]
[1718398233662,3.0,3415.9,3415.5,2.92782]
[1718398236165,3.0,3415.9,3415.6,2.92773]
[1718398236474,3.0,3415.9,3415.6,2.92772]
[1718398236681,3.0,3416.0,3415.6,2.92772]
[1718398237533,5.9274,3416.0,3415.6,2.92772]
[1718398240356,3.0,3416.0,3415.7,2.92765]
[1718398244192,3.0,3416.0,3415.8,2.92756]
[1718398244488,7.31,3416.5,3416.0,2.92738]
[1718398244793,7.31,3416.5,3415.8,7.3849]
[1718398244794,2.9268,3416.7,3416.3,2.92713]
[1718398245512,14.1804,3417.3,3416.5,2.92691]
[1718398245789,0.00346253,3417.6,3416.9,6.9798]
[1718398246007,2.9262,3417.4,3417.1,2.92643]
[1718398246769,2.9262,3417.4,3417.0,2.92652]
[1718398247558,2.92629,3417.3,3416.9,9.90641]
[1718398247757,2.92622,3417.4,3417.0,2.92654]
[1718398248896,2.92629,3417.3,3417.0,2.92654]
[1718398249095,2.92629,3417.3,3416.9,9.90641]
[1718398253207,0.874,3417.4,3416.9,6.9798]
[1718398253409,3.80037,3417.2,3416.7,2.92678]
[1718398253579,0.874,3417.2,3416.6,2.92688]
[1718398253776,2.92664,3416.9,3416.5,2.92696]
[1718398257688,2.92672,3416.8,3416.4,10.23485]
[1718398258977,2.92685,3416.7,3416.4,10.23485]
[1718398259505,0.07543819,3416.6,3416.4,10.23485]
[1718398260172,0.07543819,3416.6,3416.4,13.1619]
[1718398260378,0.07543819,3416.6,3416.5,2.92697]
[1718398260575,2.92665,3416.9,3416.5,2.92697]
[1718398260765,0.07543819,3416.6,3416.5,2.92697]
[1718398260965,2.9268,3416.7,3416.4,10.23483]
[1718398261163,2.9268,3416.7,3415.7,7.0907]
[1718398261164,2.38288333,3416.6,3415.7,7.0907]
[1718398261368,0.874,3416.2,3415.7,7.0907]
[1718398261598,2.9275,3415.9,3415.5,2.9278]
[1718398262098,0.07526061,3415.8,3415.6,2.9277]
[1718398262269,2.92741,3416.0,3415.6,2.9277]
[1718398262599,0.07523778,3415.7,3415.6,2.9277]
[1718398262910,2.92749,3415.9,3415.6,2.9277]
[1718398263078,0.07526879,3415.7,3415.6,2.9277]
[1718398263285,2.92749,3415.9,3415.6,2.9277]
[1718398263485,0.07496768,3415.7,3415.6,2.9277]
[1718398263711,2.92749,3415.9,3415.6,2.9277]
[1718398263871,0.07496768,3415.7,3415.6,2.9277]
[1718398264069,0.874,3416.2,3415.4,10.16749]
[1718398264070,2.92758,3415.8,3415.5,2.92782]
[1718398264385,2.92758,3415.8,3415.2,2.92806]
[1718398264386,3.00262768,3415.7,3415.2,2.92807]
[1718398264571,3.00262768,3415.7,3415.0,7.2513]
[1718398264572,0.07496768,3415.7,3415.3,2.92797]
[1718398265003,3.80157,3415.8,3415.3,2.92797]
[1718398265173,2.92796,3415.4,3415.0,10.17947]
[1718398265574,0.07492934,3415.3,3415.0,10.17947]
[1718398267804,0.07492934,3415.3,3415.0,2.92817]
[1718398269215,0.07492934,3415.3,3415.1,2.92815]
[1718398269622,2.92784,3415.5,3415.0,2.92824]
[1718398269623,2.92791,3415.4,3415.0,2.92824]
[1718398269786,3.80537253,3415.4,3415.0,2.92824]
[1718398270120,0.07456118,3415.3,3415.0,2.92824]
[1718398271100,0.07456118,3415.3,3415.1,2.92815]
[1718398271705,0.07456118,3415.3,3414.9,2.92826]
[1718398271902,3.80217,3415.1,3414.7,2.92849]
[1718398272132,3.80217,3415.1,3414.5,5.85726]
[1718398272133,2.92832,3415.0,3414.5,5.85726]
[1718398272433,3.00256669,3415.0,3414.6,2.92857]
[1718398273394,2.92834,3414.9,3414.6,2.92857]
[1718398273594,2.92843,3414.8,3414.4,2.92869]
[1718398273794,3.00263689,3414.8,3414.4,2.92869]
[1718398275143,3.00263689,3414.8,3414.5,2.92867]
[1718398281117,2.92877,3414.4,3414.1,2.92899]
[1718398281645,0.07389153,3414.3,3414.1,2.92899]
[1718398284617,0.07389153,3414.3,3414.2,2.92894]
[1718398284826,2.92871,3414.5,3414.2,2.92894]
[1718398285019,0.07383327,3414.4,3414.2,2.92894]
[1718398285724,3.00260327,3414.4,3414.1,2.929]
[1718398286654,3.00260327,3414.4,3414.2,2.92894]
[1718398286833,0.07383327,3414.4,3414.2,2.92894]
[1718398287231,3.00260327,3414.4,3414.2,2.92894]
[1718398287433,3.00260327,3414.4,3414.1,2.92902]
[1718398291125,3.00260327,3414.4,3414.0,2.92909]
[1718398291463,3.80286,3414.3,3413.9,2.92917]
[1718398291764,3.87638917,3414.3,3413.9,2.92917]
[1718398292964,3.00238917,3414.3,3413.9,2.92917]
[1718398294564,2.92894,3414.2,3413.9,2.92917]
[1718398294928,0.07348936,3414.1,3413.9,2.92917]
[1718398297668,0.07348936,3414.1,3413.8,2.92925]
[1718398297965,0.07348936,3414.1,3413.9,2.92918]
[1718398304588,2.92918,3414.0,3413.7,2.92936]
[1718398304881,0.07133197,3413.9,3413.7,2.92936]
[1718398305044,0.07133197,3413.9,3413.6,2.92943]
[1718398305247,0.07133197,3413.9,3413.4,6.8584]
[1718398305248,2.92935,3413.8,3413.4,6.8584]
[1718398305447,2.92935,3413.8,3413.5,2.92954]
[1718398305448,0.07129214,3413.7,3413.5,2.92954]
[1718398305696,2.92937,3413.7,3413.4,2.92963]
[1718398306011,0.07127223,3413.6,3413.4,2.92963]
[1718398306344,3.00073223,3413.6,3413.3,2.92969]
[1718398307008,0.07127223,3413.6,3413.4,2.92962]
[1718398307181,3.00073223,3413.6,3413.4,2.92962]
[1718398307549,0.07127223,3413.6,3413.4,2.92962]
[1718398310806,0.07127223,3413.6,3413.2,2.92979]
[1718398310807,0.874,3413.5,3413.2,2.92979]
[1718398310958,2.92963,3413.4,3413.1,2.92988]
[1718398311154,3.00061005,3413.4,3413.1,2.92988]
[1718398313061,0.07098005,3413.4,3413.1,2.92988]
[1718398314564,0.07098005,3413.4,3413.2,9.72899]
[1718398315578,0.07098005,3413.4,3413.3,5.85942]
[1718398315779,0.07098005,3413.4,3413.3,2.92971]
[1718398316104,0.068422,3413.4,3413.3,2.92971]
[1718398316294,2.93297253,3413.6,3413.3,2.92971]
[1718398316469,0.0684288,3413.4,3413.3,2.92971]
[1718398316669,2.93297253,3413.6,3413.3,2.92971]
[1718398316903,0.06844872,3413.5,3413.2,9.72899]
[1718398317201,0.06844872,3413.5,3413.4,2.92963]
[1718398318109,0.06844872,3413.5,3413.4,5.85926]
[1718398318402,0.06844872,3413.5,3413.3,2.92965]
[1718398318403,0.06844872,3413.5,3413.3,2.92969]
[1718398318908,0.06844872,3413.5,3413.4,2.92963]
[1718398321705,0.06844872,3413.5,3413.4,8.78889]
[1718398321909,0.06844872,3413.5,3413.4,2.92963]
[1718398325684,0.06844872,3413.5,3413.3,2.92968]
[1718398330605,0.06844872,3413.5,3413.4,2.92963]
[1718398338613,0.06844872,3413.5,3413.4,5.85926]
[1718398338945,0.06844872,3413.5,3413.4,16.52389]
[1718398339238,0.06844872,3413.5,3413.4,54.45352]
[1718398339589,0.00346253,3413.6,3413.5,15.96742]
[1718398339838,0.00346253,3413.6,3413.5,16.57991321]
[1718398340415,0.00346253,3413.6,3413.5,19.50945321]
[1718398340720,0.00346253,3413.6,3413.5,20.38345321]
[1718398341528,0.00346253,3413.6,3413.5,19.77096]
[1718398341850,0.00346253,3413.6,3413.5,20.38345321]
[1718398342461,0.00346253,3413.6,3413.5,19.77096]
[1718398342663,0.00346253,3413.6,3413.5,20.38345321]
[1718398342863,0.00346253,3413.6,3413.5,19.77096]
[1718398344517,0.00346253,3413.6,3413.5,18.89696]
[1718398344849,0.00346253,3413.6,3413.5,19.77096]
[1718398346473,0.00346253,3413.6,3413.5,18.89696]
[1718398346653,0.00346253,3413.6,3413.5,19.77096]
[1718398349326,0.00346253,3413.6,3413.5,18.89696]
[1718398349623,0.00346253,3413.6,3413.5,19.77096]
[1718398350443,0.00346253,3413.6,3413.5,5.85908]